Cogmind - Beta 14 @@@ ROGUE MODE // 2024.08.17 @ 04:10:10 Player: gigi283 Result: Destroyed by as-92750 with Assembled Heavy Rifle Performance ------------- Evolutions (3) 1500 Regions Visited (9) 1800 Robots Destroyed (154) 770 Value Destroyed (4829) 4829 Prototype IDs (28) 560 Alien Tech Used (0) 0 Bonus (-699) -699 TOTAL SCORE: 8760 Bonus ------- High Alert Combat Kills 1077 Follower Combat Kills 533 Entered Garrisons 200 Aligned with FarCom 300 Friendly Fire -2809 Cogmind --------- Core Integrity 0/700 Matter 14/300 Energy 150/150 System Corruption 6% Temperature Cool (0) Movement Core (350) Ox6 Location -7/Garrison Parts ------- > --- POWER (1) -------- Micro Nuclear Core > --- PROPULSION (3) --- (None) > --- UTILITY (5) ------ Medium Storage Unit Advanced Visual Processing Unit > --- WEAPON (4) ------- Flak Gun > --- INVENTORY (10) --- Compact Battery (200) High-capacity Matter Pod (200) Improved Signal Interpreter Relay Coupler [Grunt] (22) Supersonic Drone Bay (1/1) AWS/Autocannon Spear Peak State ------------ > --- POWER ------------ Micro Nuclear Core > --- PROPULSION ------- Wheel Armored Huge Wheel > --- UTILITY ---------- Medium Storage Unit Advanced Visual Processing Unit Advanced Targeting Computer Hacking Suite Supersonic Drone Bay > --- WEAPON ----------- Advanced Assault Cannon AWS/Autocannon > --- INVENTORY -------- Micro Nuclear Core Improved Heat Sink Compact Battery High-capacity Matter Pod Improved Sensor Array Improved Signal Interpreter Heavy Assault Cannon Heavy Missile Launcher Spear [Rating: 68] Favorites ----------- Power Light Ion Engine Engine Light Ion Engine Power Core Micro Nuclear Core Reactor Antimatter Reactor Propulsion Wheel Treads Light Treads Leg Carbon-fiber Leg Wheel Wheel Utility Medium Storage Unit Device Supersonic Drone Bay Storage Medium Storage Unit Processor Advanced Targeting Computer Hackware Hacking Suite Protection Hardened Medium Armor Plating Weapon AWS/Autocannon Energy Gun Particle Gun Energy Cannon Heavy Particle Cannon Ballistic Gun Assault Rifle Ballistic Cannon AWS/Autocannon Launcher Heavy Missile Launcher Impact Weapon Great Maul Slashing Weapon Greatsword Piercing Weapon Spear Build | -11 -10 -10 -10 -9 -8 -7 -7 -7 -7 ------- Run | Yrd Mat Min Exi Min Mat Fac Was Fac Gar Slots Evolved 6 | . . . . . 4 2 . . . Power . | . . . . . . . . . . Propulsion 1 | . . . . . 1 . . . . Utility 3 | . . . . . 2 1 . . . Weapon 2 | . . . . . 1 1 . . . Parts Attached 98 | 6 3 1 2 . 55 10 1 10 10 Power 10 | 1 . . . . 5 1 1 1 1 Engine 6 | 1 . . . . 4 1 . . . Core 3 | . . . . . 1 . . 1 1 Reactor 1 | . . . . . . . 1 . . Propulsion 26 | 2 . 1 2 . 18 2 . 1 . Treads 1 | . . . . . 1 . . . . Leg 3 | . . . . . 3 . . . . Wheel 22 | 2 . 1 2 . 14 2 . 1 . Hover . | . . . . . . . . . . Flight . | . . . . . . . . . . Utility 28 | 1 2 . . . 15 4 . 3 3 Device 10 | . . . . . 4 1 . 2 3 Storage 4 | 1 1 . . . 2 . . . . Processor 4 | . 1 . . . 3 . . . . Hackware 1 | . . . . . . 1 . . . Protection 9 | . . . . . 6 2 . 1 . Artifact . | . . . . . . . . . . Weapon 34 | 2 1 . . . 17 3 . 5 6 Energy Gun 7 | 1 1 . . . 4 1 . . . Energy Cannon 3 | . . . . . 2 1 . . . Ballistic Gun 8 | 1 . . . . 6 . . . 1 Ballistic Cannon 8 | . . . . . 3 1 . 2 2 Launcher 4 | . . . . . . . . 3 1 Special Weapon . | . . . . . . . . . . Impact Weapon 1 | . . . . . 1 . . . . Slashing Weapon 1 | . . . . . 1 . . . . Piercing Weapon 2 | . . . . . . . . . 2 Special Melee Weapon . | . . . . . . . . . . Unidentified Prototypes 5 | . . . . . 4 1 . . . Parts Lost 26 | . . . . . 16 . . 1 9 Power 2 | . . . . . 1 . . . 1 Propulsion 9 | . . . . . 7 . . . 2 Utility 5 | . . . . . 2 . . . 3 Weapon 10 | . . . . . 6 . . 1 3 Highest Loss Streak 8 | . . . . . 8 . . 1 7 To Critical Strikes . | . . . . . . . . . . Average Slot Usage (%) 81 | . 93 100 100 100 84 77 76 73 63 Engine 5 | . 14 14 14 14 6 7 2 . . Core 1 | . . . . . 2 . . 3 6 Leg 1 | . . . . . 3 . . . . Wheel 18 | . 28 28 28 28 18 17 15 15 10 Device 3 | . . . . . 4 . . 3 7 Storage 8 | . 14 14 14 14 9 7 7 7 7 Processor 12 | . 8 14 14 14 11 15 15 15 11 Hackware 3 | . . . . . . 6 7 7 5 Protection 5 | . . . . . 8 6 7 2 . Energy Gun 4 | . 14 14 14 14 6 . . . . Energy Cannon 2 | . . . . . 1 6 7 . . Ballistic Gun 4 | . 14 14 14 14 7 . . . . Ballistic Cannon 5 | . . . . . 2 7 7 11 8 Peak Build Rating 68 | 6 9 9 14 14 57 64 66 68 68 Average Rating 42 | 4 7 8 10 14 31 61 65 65 53 On Entrance 28 | . 6 9 9 14 14 33 63 66 68 Naked Turns . | . . . . . . . . . . Heaviest Build 100 | 12 18 18 18 18 89 92 99 100 84 Greatest Support 44 | 20 20 20 20 20 44 38 38 38 38 Greatest Overweight (x) 25 | . . . . . 25 4 2 2 6 Average Overweight (x) 1 | . . . . . 1 2 2 2 1 Largest Inventory Capacity 10 | 8 10 10 10 10 10 10 10 10 10 Average Capacity 9 | 6 9 10 10 10 10 10 10 10 10 Most Carried 10 | 4 9 10 10 10 10 10 10 10 10 Average Carried 9 | 1 7 9 9 10 9 9 10 9 9 Final Capacity 10 | 8 10 10 10 10 10 10 10 10 10 Final Carried 10 | 2 9 10 10 10 10 10 10 10 9 Class Distribution -------------------- 42% | Gunner 19% | Scavenger-Skirmisher 17% | Mutant 10% | Scavenger-Mutant 8% | Skirmisher Dominant Class ---------------- Mutant | -10/Materials Scavenger-Mutant | -10/Mines Scavenger-Mutant | -10/Exiles Scavenger-Mutant | -9/Mines Scavenger-Skirmisher | -8/Materials Gunner | -7/Factory Gunner | -7/Waste Gunner | -7/Factory Gunner | -7/Garrison Resources | -11 -10 -10 -10 -9 -8 -7 -7 -7 -7 ----------- Run | Yrd Mat Min Exi Min Mat Fac Was Fac Gar Matter Collected 2419 | 260 188 145 . . 1149 154 10 330 183 Remotely . | . . . . . . . . . . Salvage Created 4782 | . 231 256 . . 2401 537 . 1147 210 Parts 258 | . 14 15 . . 120 30 . 77 2 Haulers Intercepted 4 | . 1 . . . 3 . . . . Recyclers Shooed 2 | . . . . . 2 . . . . Parts Field Recycled . | . . . . . . . . . . Retrieved Matter . | . . . . . . . . . . Parts Self-Destructed . | . . . . . . . . . . Prevented . | . . . . . . . . . . Kills | -11 -10 -10 -10 -9 -8 -7 -7 -7 -7 ------- Run | Yrd Mat Min Exi Min Mat Fac Was Fac Gar Combat Hostiles Destroyed 114 | . 3 1 . . 35 16 . 26 33 Melee 5 | . . . . . 4 . . . 1 Guns 29 | . 3 1 . . 24 . . . 1 Cannons 59 | . . . . . 7 16 . 18 18 AOE 21 | . . . . . . . . 8 13 Classes Destroyed 20 | . 3 5 . . 5 2 . 4 1 Worker 18 | . . 1 . . 11 . . 6 . Builder 10 | . . 2 . . 4 1 . 3 . Tunneler 3 | . . 2 . . . 1 . . . Hauler 4 | . 1 . . . 3 . . . . Recycler 7 | . . 2 . . 3 . . 2 . Mechanic 1 | . . . . . 1 . . . . Operator 1 | . . . . . . . . 1 . Watcher 13 | . 2 . . . 4 2 . 5 . Swarmer 15 | . . 1 . . 4 4 . 6 . Grunt 35 | . 3 . . . 16 7 . 9 . Brawler 1 | . . . . . . . . 1 . Duelist 3 | . . . . . 2 . . 1 . Protector 1 | . . . . . . . . 1 . Sentry 16 | . . . . . 9 2 . 3 2 Specialist 3 | . . . . . 3 . . . . Hunter 3 | . . . . . . 1 . 2 . Programmer 7 | . . . . . . 2 . 3 2 Heavy 1 | . . . . . 1 . . . . Assembled 29 | . . . . . . . . . 29 Surgeon 1 | . . . . . . . . 1 . Wasp 2 | . . . . . . . . 2 . Thug 5 | . . . . . . . . 5 . Savage 3 | . . . . . . . . 3 . Martyr 1 | . . . . . . . . 1 . Best Kill Streak 19 | . 2 5 . . 8 5 . 10 19 Combat Bots Only 19 | . 1 1 . . 4 5 . 5 19 Max Kills in Single Turn 19 | . 1 1 . . 1 1 . 19 5 Gunslinging . | . . . . . . . . . . Exploded 4 | . . . . . . . . 3 4 Melee 1 | . . . . . 1 . . . 1 Uniques/NPCs Destroyed . | . . . . . . . . . . Combat | -11 -10 -10 -10 -9 -8 -7 -7 -7 -7 -------- Run | Yrd Mat Min Exi Min Mat Fac Was Fac Gar Hostile Shots Fired 468 | . 9 8 . . 228 28 . 50 145 Missed 138 | . 2 2 . . 69 12 . 24 29 Damage Taken 5707 | . 81 46 . . 2691 169 . 990 1730 Core 1181 | . 27 6 . . 437 5 . 224 482 Absorbed by Shields . | . . . . . . . . . . Regen/Repaired (Parts) 23 | . . . . . . . . 23 . Core Remaining (%) 68 | 100 . . . 86 20 . . . . Volleys Fired 273 | . 16 15 . . 170 12 . 31 29 Largest 3 | . 2 2 . . 3 1 . 1 3 Hottest 151 | . 85 85 . . 151 75 . 75 147 Shots Fired 631 | . 32 30 . . 372 44 . 87 66 Gun 409 | . 32 30 . . 345 . . . 2 Cannon 204 | . . . . . 27 44 . 78 55 Launcher 18 | . . . . . . . . 9 9 Special . | . . . . . . . . . . Kinetic 420 | . 16 15 . . 224 31 . 77 57 Thermal 187 | . 16 15 . . 142 13 . 1 . Explosive 18 | . . . . . . . . 9 9 Electromagnetic 6 | . . . . . 6 . . . . Robot Hit Streak 30 | . 6 5 . . 30 11 . 14 26 Robot Miss Streak 9 | . 4 3 . . 5 3 . 3 9 Penetration Max . | . . . . . . . . . . Secondary Targets 1 | . . . . . 1 . . . . Max Gunslinging Chain 1 | . . . . . 1 . . . . Autonomous 129 | . . . . . 21 31 . 55 22 Shots Hit Robots 423 | . 17 17 . . 250 35 . 71 33 Core Hits 240 | . 11 9 . . 92 16 . 73 39 Critical Kills . | . . . . . . . . . . Critical Parts Destroyed 2 | . . 1 . . 1 . . . . Critical Strikes 32 | . 1 2 . . 12 3 . 8 6 Burn 6 | . 1 1 . . 4 . . . . Destroy 2 | . . 1 . . 1 . . . . Blast 20 | . . . . . 4 3 . 8 5 Sever 3 | . . . . . 3 . . . . Impale 1 | . . . . . . . . . 1 Melee Attacks 22 | . . . . . 20 . . . 2 Impact 1 | . . . . . 1 . . . . Slashing 19 | . . . . . 19 . . . . Piercing 2 | . . . . . . . . . 2 Sneak Attacks 4 | . . . . . 4 . . . . Combat Hostiles . | . . . . . . . . . . Follow-up Attacks . | . . . . . . . . . . Damage Inflicted 19950 | . 213 243 . . 6102 2451 . 7805 3136 Guns 4171 | . 213 243 . . 3698 . . . 17 Cannons 10390 | . . . . . 1423 2451 . 4423 2093 Explosions 4361 | . . . . . . . . 3370 991 Melee 999 | . . . . . 967 . . . 32 Ramming 29 | . . . . . 14 . . 12 3 Kinetic 12361 | . 110 106 . . 3367 2245 . 4423 2110 Thermal 3392 | . 103 137 . . 1637 206 . 1309 . Explosive 3052 | . . . . . . . . 2061 991 Electromagnetic 117 | . . . . . 117 . . . . Impact 86 | . . . . . 86 . . . . Slashing 881 | . . . . . 881 . . . . Piercing 32 | . . . . . . . . . 32 Highest Corruption 6 | . . . . . . 2 2 2 6 Average Corruption 2 | . . . . . . 2 2 2 3 Corruption Purged . | . . . . . . . . . . Corruption Blocked . | . . . . . . . . . . Effects 54 | . . . . . . 16 3 24 11 Message Errors 15 | . . . . . . 4 . 8 3 Matter Fused 8 | . . . . . . 3 1 3 1 Heat Flow Errors 2 | . . . . . . . . 2 . Energy Discharges 7 | . . . . . . 3 2 2 . Data Loss (minor) 12 | . . . . . . 5 . 5 2 Data Loss (major) 3 | . . . . . . . . 1 2 Misfires 2 | . . . . . . 1 . 1 . Alerts 2 | . . . . . . . . 2 . Weapon Failures 3 | . . . . . . . . . 3 Overload Shots . | . . . . . . . . . . Overflow Damage 1918 | . . . . . 340 372 . 845 361 Projectiles 1423 | . . . . . 189 372 . 525 337 Explosions 344 | . . . . . . . . 320 24 Melee 151 | . . . . . 151 . . . . Knockbacks 37 | . . . . . 5 5 . 19 8 Impact . | . . . . . . . . . . Kinetic 35 | . . . . . 4 4 . 19 8 Secondary 2 | . . . . . 1 1 . . . Self-Inflicted Damage 725 | . . . . . 6 . . 653 66 Shots 12 | . . . . . . . . 9 3 Rammed 10 | . . . . . 4 . . 2 4 Targets Rammed 10 | . . . . . 4 . . 2 4 Kicked . | . . . . . . . . . . Crushed . | . . . . . . . . . . Highest Temperature 231 | . 45 120 . . 219 54 . 231 109 Average Temperature 52 | . 17 49 . . 61 20 . 65 48 Received Heat Transfer 1308 | . 45 . . . 990 30 . 87 156 Siege Activations . | . . . . . . . . . . Robots Corrupted 1 | . . . . . . 1 . . . Combat Hostiles . | . . . . . . . . . . Parts Fried 6 | . . . . . 1 5 . . . Impact Corruptions 2 | . . . . . 1 1 . . . Robots Melted . | . . . . . . . . . . Combat Hostiles . | . . . . . . . . . . Parts Melted 6 | . . 1 . . 5 . . . . Heat Transferred 5599 | . 370 407 . . 3626 296 . 900 . Parts Sabotaged . | . . . . . . . . . . Parts Stolen . | . . . . . . . . . . Parts Stripped . | . . . . . . . . . . Power Chain Reactions . | . . . . . . . . . . Alert | -11 -10 -10 -10 -9 -8 -7 -7 -7 -7 ------- Run | Yrd Mat Min Exi Min Mat Fac Was Fac Gar Peak Influence 1350 | . 165 99 . . 859 531 127 1350 1236 Initial 900 | . . 64 . . . 375 127 88 900 Average 436 | . 78 72 . . 333 391 127 722 1104 Maximum Alert Level 4 | . . . . . 3 2 . 4 4 Low Security (%) 27 | 100 100 100 . 100 29 . 100 14 . Level 1 32 | . . . . . 41 57 . 18 . Level 2 15 | . . . . . 17 42 . 2 . Level 3 18 | . . . . . 11 . . 53 36 Level 4 5 | . . . . . . . . 11 63 Level 5 . | . . . . . . . . . . High Security . | . . . . . . . . . . Max Security . | . . . . . . . . . . Squads Dispatched 16 | . 1 . . . 4 2 . 9 . Investigation 2 | . . . . . 1 . . 1 . Extermination 5 | . . . . . . 2 . 3 . Reinforcement 6 | . 1 . . . 3 . . 2 . Assault 3 | . . . . . . . . 3 . Garrison . | . . . . . . . . . . Intercept . | . . . . . . . . . . Searches Triggered . | . . . . . . . . . . Construction Impeded . | . . . . . . . . . . Haulers Reinforced 1 | . . . . . . . . 1 . Active Scanning Responses . | . . . . . . . . . . Cargo Convoy Interrupts . | . . . . . . . . . . Stealth | -11 -10 -10 -10 -9 -8 -7 -7 -7 -7 --------- Run | Yrd Mat Min Exi Min Mat Fac Was Fac Gar Distress Signals 2 | . . . . . 1 1 . . . Communications Jammed . | . . . . . . . . . . Distress Signals . | . . . . . . . . . . Times Spotted 152 | . 9 3 . . 57 13 . 36 34 Peak Tracking Total 10 | . 2 3 . . 5 3 . 5 10 Tactical Retreats 11 | . 1 . . . 6 1 . . 3 Traps | -11 -10 -10 -10 -9 -8 -7 -7 -7 -7 ------- Run | Yrd Mat Min Exi Min Mat Fac Was Fac Gar Traps Triggered 16 | . . . . . 1 3 . 9 3 Indirectly . | . . . . . . . . . . Trap Hack Attempts . | . . . . . . . . . . Triggered . | . . . . . . . . . . Disarmed . | . . . . . . . . . . Reprogrammed . | . . . . . . . . . . Reused . | . . . . . . . . . . Traps Extracted . | . . . . . . . . . . Installed . | . . . . . . . . . . Triggered . | . . . . . . . . . . Machines | -11 -10 -10 -10 -9 -8 -7 -7 -7 -7 ---------- Run | Yrd Mat Min Exi Min Mat Fac Was Fac Gar Machines Disabled 38 | . . . . . 1 4 . 31 2 Max in Single Turn 15 | . . . . . 1 3 . 15 1 Garrison Relay 2 | . . . . . . . . . 2 Machines Repaired . | . . . . . . . . . . Machines Dismantled . | . . . . . . . . . . Machines Sabotaged . | . . . . . . . . . . Overloaded Fab Kills . | . . . . . . . . . . Hacking | -11 -10 -10 -10 -9 -8 -7 -7 -7 -7 --------- Run | Yrd Mat Min Exi Min Mat Fac Was Fac Gar Machines Accessed 14 | . 3 . 1 . 3 1 . 5 1 Terminals 10 | . 3 . . . 2 1 . 3 1 Fabricators . | . . . . . . . . . . Repair Stations . | . . . . . . . . . . Recycling Units . | . . . . . . . . . . Scanalyzers 1 | . . . . . 1 . . . . Garrison Access 2 | . . . . . . . . 2 . Total Hacks 34 | . 8 . 1 . 11 1 . 11 2 Successful 19 | . 5 . 1 . 6 1 . 5 1 Failed 15 | . 3 . . . 5 . . 6 1 Catastrophic 1 | . . . . . . . . 1 . Database Lockouts . | . . . . . . . . . . Manual 10 | . 4 . 1 . 3 . . 2 . Terminals 22 | . 8 . . . 3 1 . 8 2 Fabricators . | . . . . . . . . . . Repair Stations . | . . . . . . . . . . Recycling Units . | . . . . . . . . . . Scanalyzers 8 | . . . . . 8 . . . . Garrison Access 3 | . . . . . . . . 3 . Terminal Hacks 9 | . 2 . 1 . . 1 . 4 1 Open Door 1 | . . . . . . . . . 1 Open DSF 2 | . . . . . . 1 . 1 . Alert Level 3 | . 1 . . . . . . 2 . Unreport Threat 1 | . . . . . . . . 1 . Dispatch Records 1 | . 1 . . . . . . . . Derelict Proto ID Bank 1 | . . . 1 . . . . . . Fabricator Hacks . | . . . . . . . . . . Repair Station Hacks . | . . . . . . . . . . Recycling Unit Hacks . | . . . . . . . . . . Scanalyzer 6 | . . . . . 6 . . . . Insert Component 4 | . . . . . 4 . . . . Analyze 2 | . . . . . 2 . . . . Garrison Access Hacks 1 | . . . . . . . . 1 . Unlock Access 1 | . . . . . . . . 1 . Unauthorized Hacks 3 | . 3 . . . . . . . . Terminals 3 | . 3 . . . . . . . . Botnet 3 | . 3 . . . . . . . . Fabricators . | . . . . . . . . . . Repair Stations . | . . . . . . . . . . Recycling Units . | . . . . . . . . . . Scanalyzers . | . . . . . . . . . . Garrison Access . | . . . . . . . . . . Data Cores Recovered 1 | . . . . . . . . 1 . Used 1 | . . . . . . . . 1 . Hacking Detections 9 | . 3 . . . 2 . . 3 1 Full Trace Events 1 | . . . . . . . . 1 . Feedback Events . | . . . . . . . . . . Feedback Blocked . | . . . . . . . . . . Robot Schematics Acquired . | . . . . . . . . . . Robots Built . | . . . . . . . . . . Authchips . | . . . . . . . . . . Time . | . . . . . . . . . . Total Robot Build Rating . | . . . . . . . . . . Part Schematics Acquired 2 | . . . . . 2 . . . . Parts Built . | . . . . . . . . . . Authchips . | . . . . . . . . . . Time . | . . . . . . . . . . Total Part Build Rating . | . . . . . . . . . . Parts Repaired . | . . . . . . . . . . Time . | . . . . . . . . . . Parts Recycled . | . . . . . . . . . . Recycled Matter . | . . . . . . . . . . Retrieved Matter . | . . . . . . . . . . Retrieved Components . | . . . . . . . . . . Parts Scanalyzed 2 | . . . . . 2 . . . . Part Schematics Acquired 2 | . . . . . 2 . . . . Parts Damaged . | . . . . . . . . . . Bothacking | -11 -10 -10 -10 -9 -8 -7 -7 -7 -7 ------------ Run | Yrd Mat Min Exi Min Mat Fac Was Fac Gar Used RIF Installer . | . . . . . . . . . . Robots Hacked . | . . . . . . . . . . Non-combat . | . . . . . . . . . . Combat . | . . . . . . . . . . Robot Hacks Applied . | . . . . . . . . . . Relay Couplers Released 8 | . . . . . . . . . 8 Machine Destruction 8 | . . . . . . . . . 8 Fabnet Peak Effective % . | . . . . . . . . . . Robots Rewired . | . . . . . . . . . . Allies Hacked . | . . . . . . . . . . Hacks Repelled . | . . . . . . . . . . Allies | -11 -10 -10 -10 -9 -8 -7 -7 -7 -7 -------- Run | Yrd Mat Min Exi Min Mat Fac Was Fac Gar Total Allies 23 | . . 2 . . . . 20 . 1 Largest Group 20 | . . 2 2 . . . 20 20 1 Highest-Rated Group 472 | . . 42 42 . . . 472 472 20 Highest-Rated Ally 35 | . . 31 31 . . . 35 35 20 Total Orders 5 | . . . . . . . . 3 2 EXPLORE 5 | . . . . . . . . 3 2 Ally Attacks 91 | . . 8 . . 21 . . 59 3 Total Damage 2186 | . . 62 . . 1085 . . 1004 35 Kills 20 | . . 2 . . 7 . . 11 . Allies Corrupted 1 | . . . . . . . . . 1 Allies Melted . | . . . . . . . . . . Turrets Deployed 2 | . . . . . 2 . . . . Intel | -11 -10 -10 -10 -9 -8 -7 -7 -7 -7 ------- Run | Yrd Mat Min Exi Min Mat Fac Was Fac Gar Robot Analysis Total . | . . . . . . . . . . Derelict Logs Recovered 1 | . . 1 . . . . . . . Drone Launches 4 | . . . . . . . . 2 2 Drone Recoveries 4 | . . . . . . . . 2 2 Exploration | -11 -10 -10 -10 -9 -8 -7 -7 -7 -7 ------------- Run | Yrd Mat Min Exi Min Mat Fac Was Fac Gar Turns Passed 9762 | 59 345 614 317 29 3978 1784 123 2005 508 Spaces Moved 6355 | 48 308 571 384 24 2351 910 80 1418 261 Core 52 | 9 . . . . 26 . . . 17 Treads . | . . . . . . . . . . Legs 198 | . . . . . 198 . . . . Wheels 6105 | 39 308 571 384 24 2127 910 80 1418 244 Hover . | . . . . . . . . . . Flight . | . . . . . . . . . . Fastest Speed 50 | 50 80 80 80 80 80 113 120 120 100 Average Speed 110 | 74 80 80 80 80 117 116 120 120 130 Slowest Speed 1300 | 80 80 80 80 80 1300 140 120 120 350 Overloaded Moves . | . . . . . . . . . . Propulsion Burnouts . | . . . . . . . . . . Robots Hopped 7 | . . . . . 7 . . . . Cave-ins Triggered . | . . . . . . . . . . Exploration Rate (%) 47 | 4 46 84 62 9 93 21 67 59 30 Regions Visited 9 Branch Regions 3 Pre-discovered Areas . | . . . . . . . . . . Known Exits Taken 5 | . 1 1 1 1 . . . 1 . Unknown Exits Taken 2 | 1 . . . . 1 . . . . Scrap Searched 1 | . . 1 . . . . . . . Spaces Dug 9 | . . . . . . . . . 9 Terrain Destroyed 354 | . . . . . 5 31 . 249 69 Melee . | . . . . . . . . . . Projectile 23 | . . . . . 5 3 . 6 9 AOE 331 | . . . . . . 28 . 243 60 Terrain Rammed . | . . . . . . . . . . Walls Destroyed . | . . . . . . . . . . Machines Disabled . | . . . . . . . . . . Actions | -11 -10 -10 -10 -9 -8 -7 -7 -7 -7 --------- Run | Yrd Mat Min Exi Min Mat Fac Was Fac Gar Total 8574 | 71 374 699 395 33 3219 1623 107 1691 362 Wait 1614 | 10 36 105 . 10 557 669 26 176 25 Move 6333 | 47 307 570 383 23 2336 910 79 1417 261 Hop 7 | . . . . . 7 . . . . Pick Up 74 | 8 10 4 4 . 29 10 . 6 3 Fast Attach 27 | . . . . . 21 3 . 3 . Attach 43 | 6 2 . . . 19 6 . 4 6 Detach 6 | . . . . . 1 1 . 2 2 Swap 28 | . 1 1 2 . 15 1 1 3 4 Drop 73 | . 2 4 6 . 40 11 1 7 2 Fire 273 | . 16 15 . . 170 12 . 31 29 Melee 22 | . . . . . 20 . . . 2 Ram 10 | . . . . . 4 . . 2 4 Kick . | . . . . . . . . . . Crush . | . . . . . . . . . . Escape Stasis 64 | . . . . . . . . 40 24 Rewire . | . . . . . . . . . . Trap . | . . . . . . . . . . Miscellaneous . | . . . . . . . . . . Route ------- -11/Scrapyard -10/Materials (discovered 3 exits: *Mat / *Min x2) -10/Mines (discovered 3 exits: *Mat x2 / *Exi) -10/Exiles (discovered 2 exits: *Min x2) -9/Mines -8/Materials (discovered 3 exits: *Fac x3) -7/Factory -7/Waste -7/Factory (discovered 5 exits: [*Fac x2] / [*Low x2] / Gar) -7/Garrison History --------- Turn | Location | Event 14 | -11/Scrapyard | Discovered new exit (range 15) 60 | -11/Scrapyard | Entered Materials 170 | -10/Materials | Discovered new exit (range 7) 199 | -10/Materials | Discovered new exit (range 14) 217 | -10/Materials | Identified exit to Materials 302 | -10/Materials | Build established: Mutant 366 | -10/Materials | Discovered new exit (range 6) 371 | -10/Materials | Identified exit to Mines 405 | -10/Materials | Entered Mines 524 | -10/Mines | Learned Materials emergency access door positions 554 | -10/Mines | Discovered exit to Materials (range 6) 642 | -10/Mines | Discovered exit to Materials (range 6) 831 | -10/Mines | A weapon hastily lodged in a ceiling crevice suddenly fell to the ground 910 | -10/Mines | Build established: Scavenger-Mutant 924 | -10/Mines | Deemed a non-threat by the Exiles lab entrance 925 | -10/Mines | Discovered new exit (range 5) 928 | -10/Mines | Identified exit to Exiles 1019 | -10/Mines | Entered Exiles 1019 | -10/Exiles | Accompanied by 2 allies 1039 | -10/Exiles | Discovered new exit (range 15) 1049 | -10/Exiles | Led the pair of lost Derelicts to a safe place 1064 | -10/Exiles | Identified exit to Mines 1088 | -10/Exiles | Met 8R-AWN 1103 | -10/Exiles | Met EX-HEX 1136 | -10/Exiles | Met EX-BIN 1151 | -10/Exiles | Aligned with FarCom system 1152 | -10/Exiles | Given EX-Vault access code 1177 | -10/Exiles | Opened EX-Vault 1197 | -10/Exiles | Warned to stay clear of 0b10 Research branches 1210 | -10/Exiles | Exiles lab attacked by MAIN.C 1226 | -10/Exiles | Found AWS/Autocannon 1230 | -10/Exiles | Found Supersonic Drone Bay 1235 | -10/Exiles | Found Deploy-a-Sentry 1237 | -10/Exiles | Found Deploy-a-Sentry 1323 | -10/Exiles | Discovered exit to Mines (range 12) 1336 | -10/Exiles | Stole three prototypes: Supersonic Drone Bay, AWS/Autocannon, Deploy-a-Sentry 1336 | -10/Exiles | Entered Mines 1346 | -9/Mines | Discovered new exit (range 7) 1364 | -9/Mines | Identified exit to Materials 1365 | -9/Mines | Entered Materials 1365 | -8/Materials | Evolved 4 slots: Propulsion x1, Utility x2, Weapon x1 1662 | -8/Materials | Build established: Scavenger-Skirmisher 1798 | -8/Materials | DAS Turret deployed 2396 | -8/Materials | DAS Turret deployed 3470 | -8/Materials | Lost 8 parts (1p3n2u2w) 4108 | -8/Materials | Discovered new exit (range 20) 4115 | -8/Materials | Build established: Skirmisher 4175 | -8/Materials | Core integrity fell below 50% 4583 | -8/Materials | Build established: Mutant 4983 | -8/Materials | Discovered new exit (range 7) 5289 | -8/Materials | Discovered new exit (range 20) 5343 | -8/Materials | Entered Factory 5343 | -7/Factory | Evolved 2 slots: Utility x1, Weapon x1 5345 | -7/Factory | FarCom data flow suspended 5633 | -7/Factory | Build established: Gunner 7127 | -7/Factory | Sucked down chute 7127 | -7/Factory | Entered Waste 7128 | -7/Waste | Joined by Warlord forces that had cleared the area 7203 | -7/Waste | Discovered new exit (range 13) 7250 | -7/Waste | Entered Factory 7250 | -7/Factory | Accompanied by 20 allies 7365 | -7/Factory | Discovered new exit (range 12) 7368 | -7/Factory | Lost 3 allies 7980 | -7/Factory | Murdered 11 allies 8064 | -7/Factory | Discovered new exit (range 59) 8071 | -7/Factory | Discovered new exit (range 97) 8850 | -7/Factory | First assault squad dispatched 8888 | -7/Factory | Discovered new exit (range 8) 9254 | -7/Factory | Identified exit to Garrison 9255 | -7/Factory | Entered Garrison 9318 | -7/Garrison | Rescued a captive Derelict 9349 | -7/Garrison | Triggered checkpoint 9406 | -7/Garrison | Garrison Relay disabled 9430 | -7/Garrison | Assembled breached garrison interior 9554 | -7/Garrison | AWS/Autocannon suddenly broke down 9567 | -7/Garrison | Destroyed 9 combat bots 9639 | -7/Garrison | Core integrity fell below 50% 9655 | -7/Garrison | Destroyed 19 combat bots 9704 | -7/Garrison | Core integrity fell below 20% 9736 | -7/Garrison | Lost 7 parts (1p1n2u3w) 9763 | -7/Garrison | Destroyed by as-92750 with Assembled Heavy Rifle Last Messages --------------- 09634_ Slug penetrates Wall. 09634_ Destroyed Asb. Hover Unit. 09634_ as-29600 destroyed. 09639_ Acquired 6 matter. 09641_ Acquired 9 matter. 09643_ System corrupted: Hvy. Assault Cannon jammed. 09649_ The unstable cave ceiling collapses. 09649_ Hvy. Assault Cannon destroyed. 09659_ Adv. Assault Cannon destroyed. 09686_ Arm. Huge Wheel destroyed. 09705_ Imp. Sensor Array destroyed. 09722_ Acquired Flak Gun. 09727_ MIKJIBKTNH8NQX6CQ0RUR 09732_ as-24412 destroyed. 09737_ Acquired 3 matter. 09746_ Slammed into as-92750. 09746_ Destabilizing: Core damaged (-28). 09750_ Slammed into as-92750. [Achievement: Achiever] Map ----- +----------------------------------------------------+ | | | ???????????????????????????????????? | | ???????????????????????????????????? | | ???????????????????????????????????? | | ???????????????????????????????????? | | ???????????????????????#???????????? | | ??????????????????????? ???????????? | | ??????????????????????? ???????????? | | ??????????????????????# #??????????? | | ??????????????????????# #??????????? | | ??????????????????????# #??????????? | | ?????????#####????????# #??????????? | | ?????????# #????????# #??????????? | | ?????????# #???????? %#??????????? | | ?????????# #????????#%#??????????? | | ?????????# #???????##+##??#######? | | ?????????# #???????#%=%#??#"" ""#? | | ?????????# #??######% ##### !!### | | ?????????# #??#% == % !! # | | ?????????# #??#% /%! % # | | ?????????# #??# ##############++# | | ?????###?# #??# #????????????? # | | ?????# #?# #### ###############+# | | ????## ### # | | ????#T ##a # | | ????##= * @ # | | ?????# ######################### # | | ?????###???????????????????????# # | | ???????????????????????????????# # | | ???????????????????????????????# # | | ???????????????????????????????# # | | ???????????????????????????????# # | | ???????????????????????????????# # | | ???????????????????????????????# # | | ???????????????????????????????# # | | ???????????????????????????????# # | | ???????????????????????????????# # | | ???????????????????????????????# # | | ???????????????????????????????# # | | ???????????????????????????????# # | | ???????????????????????????????# # | | ???????????????????????????????# | | ???????????????????????????????# | | ?????????????????????????????### | | ?????????????????????????????# | | ?????????????????????????????# | | ?????????????????????????????# % | | ?????????????????????????????# # # | | ?????????????????????????????# | | ?????????????????????????????### | +----------------------------------------------------+ Best States ------------- Heat Dissipation 50 Energy Generation 21 Energy Capacity 800 Matter Stores 300 Matter Capacity 300 Sight Range 20 Robot Scan Range 15 Terrain Scan Density 10 ECM Strength 2 Additional Mass Support 9 Armor Coverage 450 Utility Shielding 33 Evasion (%) 50 Targeting Accuracy 8 Offensive Hacking 10 Item Schematics ----------------- Adv. Targeting Computer | -8/Materials | Scanalyzed Hacking Suite | -8/Materials | Scanalyzed Robot Schematics ------------------ None Fabricated ------------ Nothing Alien Tech Used ----------------- None Achievements -------------- Achiever Collateral Damage We Are Legion Challenges ------------ None Game ------ Seed PotentialImpulseVibroblade Manual? 0 Play Time 01:29:35 Cumulative 43.3 hours Start 2024.08.17 @ 02:34:02 End 2024.08.17 @ 04:10:10 Sessions 1 Manual Loads 0 Difficulty Rogue Special Mode None Game No. 60 Rogue 60 Adventurer 0 Explorer 0 Win Type - Total 0 Types 0/0/0/0/0/0/0/0/0 Lore% 12 Gallery% 27 Achievement% 25 Wizard Run 0 Options --------- Layout 1 ASCII 0 Keyboard 0 Movement Arrows Keybinds 0 Fullscreen 1 Font 16/SmallcapsGlow Map View 50x40 Zoom Use 0% Tactical HUD 1 Map Filters NONE Filters NONE Steam SD RUN: 639db291-fc57-4346-8547-d3494a35b0f1